fUSD/lending_fUSD_20260128
["ID","MTS","AMOUNT","RATE_DAILY","PERIOD"]
[403841613,1769587841005,-500.0,0.00017313,2]
[403841614,1769587841015,-500.0,0.00017313,2]
[403841615,1769587841024,-500.0,0.00017313,2]
[403841616,1769587841033,-500.0,0.00017313,2]
[403841617,1769587841042,-500.0,0.00017313,2]
[403841618,1769587841051,-500.0,0.00017313,2]
[403841619,1769587841060,-500.0,0.00017313,2]
[403841620,1769587841071,-500.0,0.00017313,2]
[403841621,1769587841083,-500.0,0.00017313,2]
[403841622,1769587841092,-500.0,0.00017313,2]
[403841623,1769587841101,-500.0,0.00017313,2]
[403841624,1769587841110,-500.0,0.00017313,2]
[403841625,1769587841121,-500.0,0.00017313,2]
[403841626,1769587841132,-500.0,0.00017313,2]
[403841627,1769587841144,-500.0,0.00017313,2]
[403841628,1769587841153,-255.68248872,0.00017313,2]
[403841629,1769587841162,-500.0,0.00017313,2]
[403841630,1769587841172,-500.0,0.00017313,2]
[403841631,1769587841181,-500.0,0.00017313,2]
[403841632,1769587841190,-500.0,0.00017313,2]
[403841633,1769587841199,-500.0,0.00017313,2]
[403841634,1769587841208,-500.0,0.00017313,2]
[403841635,1769587841217,-500.0,0.00017313,2]
[403841636,1769587841229,-500.0,0.00017313,2]
[403841637,1769587841239,-500.0,0.00017313,2]
[403841638,1769587841248,-1637.0,0.00017314,2]
[403841639,1769587841257,-1637.0,0.00017359,2]
[403841640,1769587841267,-1637.0,0.00017425,2]
[403841641,1769587841275,-209.28929397,0.00017478,2]
[403841642,1769587841284,-166.66,0.00017486,2]
[403841643,1769587841293,-859.0,0.00017504,2]
[403841644,1769587841302,-1637.0,0.00017579,2]
[403841645,1769587841311,-5901.30840243,0.00017582,2]
[403841646,1769587841321,-1637.0,0.0001763,2]
[403841647,1769587841329,-158.70124472,0.00017692,2]
[403841648,1769587841338,-150.0,0.00017699,2]
[403841649,1769587841347,-200.0,0.00017699,2]
[403841650,1769587841356,-261.65460803,0.00017699,2]
[403841651,1769587841365,-150.0,0.00017699,2]
[403841652,1769587841374,-150.0,0.00017699,2]
[403841653,1769587841383,-150.0,0.00017699,2]
[403841654,1769587841392,-150.0,0.00017699,2]
[403841655,1769587841402,-150.0,0.00017699,2]
[403841656,1769587841411,-150.0,0.00017699,2]
[403841657,1769587841420,-150.0,0.00017699,2]
[403841658,1769587841429,-798.05,0.00017735,2]
[403841659,1769587841438,-150.0,0.00017754,2]
[403841660,1769587841447,-150.0,0.00017754,2]
[403841661,1769587841461,-150.0,0.00017754,2]
[403841662,1769587841470,-200.0,0.00017754,2]
[403841663,1769587841479,-150.0,0.00017754,2]
[403841664,1769587841488,-150.0,0.00017754,2]
[403841665,1769587841497,-200.0,0.00017809,2]
[403841666,1769587841506,-200.0,0.00017809,2]
[403841667,1769587841515,-200.0,0.00017809,2]
[403841668,1769587841525,-200.0,0.00017809,2]
[403841669,1769587841534,-166.11,0.00017831,2]
[403841670,1769587841543,-500.0,0.00017891,2]
[403841671,1769587841552,-1300.0,0.000179,6]
[403841672,1769587841562,-150.00289551,0.00017933,2]
[403841673,1769587841571,-1637.0,0.00017963,2]
[403841674,1769587841580,-166.66,0.00017996,2]
[403841675,1769587841589,-501.0,0.00018,2]
[403841676,1769587841599,-201.902198,0.00018,2]
[403841677,1769587841608,-1637.0,0.00018022,2]
[403841678,1769587841618,-243.65670637,0.00018042,2]
[403841679,1769587841627,-200.0,0.00018082,2]
[403841680,1769587841636,-200.0,0.00018082,3]
[403841681,1769587841646,-200.0,0.00018082,4]
[403841682,1769587841655,-200.0,0.00018082,5]
[403841683,1769587841665,-200.0,0.00018082,6]
[403841684,1769587841677,-200.0,0.00018082,7]
[403841685,1769587841687,-292.19472761,0.00018082,8]
[403841686,1769587841696,-1637.0,0.00018093,2]
[403841687,1769587841707,-5532.0,0.000181,3]
[403841688,1769587841717,-1637.0,0.00018109,2]
[403841689,1769587841728,-1637.0,0.0001812,2]
[403841690,1769587841738,-1637.0,0.00018127,2]
[403841691,1769587841749,-1637.0,0.00018189,2]
[403841692,1769587841758,-1637.0,0.00018227,2]
[403841693,1769587841767,-1637.0,0.00018248,2]
[403841694,1769587841776,-1637.0,0.00018269,2]
[403841695,1769587841786,-174.61919141,0.00018269,2]
[403841696,1769587841796,-721.12765535,0.00018269,2]
[403841697,1769587841806,-322.6107,0.00018269,2]
[403841698,1769587841815,-578.20924308,0.00018269,2]
[403841699,1769587841825,-209.40437684,0.00018269,2]
[403841700,1769587841834,-854.2589148,0.00018269,2]
[403841701,1769587841844,-500.0,0.00018269,2]
[403841702,1769587841854,-500.0,0.00018269,2]
[403841703,1769587841863,-250.0,0.00018269,2]
[403841704,1769587841873,-5532.0,0.000183,5]
[403841705,1769587841883,-3477.0,0.00018324,2]
[403841706,1769587841893,-615.0,0.00018324,2]
[403841707,1769587841903,-1333.0,0.00018324,2]
[403841708,1769587841912,-184.0,0.00018324,2]
[403841709,1769587841921,-1270.0,0.00018324,2]
[403841710,1769587841931,-928.806,0.00018324,2]
[403841711,1769587841940,-1204.0,0.00018324,2]
[403841712,1769587841950,-2443.0,0.00018324,2]
[403841713,1769587841959,-4832.0,0.00018324,2]
[403841714,1769587841969,-6572.0,0.00018324,2]
[403841715,1769587841979,-217.15233878,0.00018324,2]
[403841716,1769587841988,-798.05,0.00018376,2]
[403841717,1769587841998,-225.18697532,0.00018379,2]
[403841718,1769587842007,-1637.0,0.00018397,2]
[403841719,1769587842017,-1637.0,0.00018405,2]
[403841720,1769587842027,-233.51889341,0.00018434,2]
[403841721,1769587842037,-1637.0,0.00018463,2]
[403841722,1769587842046,-242.15909246,0.00018489,2]
[403841723,1769587842055,-1637.0,0.00018537,2]
[403841724,1769587842064,-251.11897888,0.00018544,2]
[403841725,1769587842077,-1637.0,0.0001858,2]
[403841726,1769587842087,-260.4103811,0.00018599,2]
[403841727,1769587842096,-1637.0,0.00018632,2]
[403841728,1769587842107,-270.0455652,0.00018654,2]
[403841729,1769587842119,-150.173,0.00018677,2]
[403841730,1769587842128,-150.149,0.00018677,2]
[403841731,1769587842137,-1637.0,0.00018687,2]
[403841732,1769587842149,-280.03725112,0.00018709,2]
[403841733,1769587842159,-290.39862941,0.00018764,2]
[403841734,1769587842167,-181.08010149,0.00018817,2]
[403841735,1769587842176,-885.86649465,0.00018817,2]
[403841736,1769587842186,-301.1433787,0.00018819,2]
[403841737,1769587842195,-798.05,0.00019017,2]
[403841738,1769587842204,-166.11,0.0001902,2]
[403841739,1769587842214,-200.19495985,0.00019082,2]
[403841740,1769587842224,-868.22,0.00019143,2]
[403841741,1769587842233,-187.78006525,0.00019365,2]
[403841742,1769587842244,-918.64355495,0.00019365,2]
[403841743,1769587842253,-343.34729902,0.00019434,2]
[403841744,1769587842263,-2768.16,0.00019516,2]
[403841745,1769587842272,-925.51190611,0.00019632,2]
[403841746,1769587842282,-334.5472959,0.00019638,2]
[403841747,1769587842293,-798.05,0.00019658,2]
[403841748,1769587842303,-2000.0,0.000197,2]
[403841749,1769587842313,-2000.0,0.000197,2]
[403841750,1769587842323,-172.59,0.00019803,2]
[403841751,1769587842333,-194.72792766,0.00019913,2]
[403841752,1769587842345,-952.63336648,0.00019913,2]
[403841753,1769587842355,-200.0,0.0002,2]
[403841754,1769587842364,-166.11,0.00020208,2]
[403841755,1769587842373,-8615.0,0.00020313,2]
[403841756,1769587842382,-152.0,0.0002032,3]
[403841757,1769587842392,-201.93286099,0.00020461,2]
[403841758,1769587842401,-987.88080104,0.00020461,2]
[403841759,1769587842411,-150.00289551,0.00020678,11]
[403841760,1769587842420,-501.0,0.00020696,4]
[403841761,1769587842429,-183.92,0.00020788,2]
[403841762,1769587842438,-5901.30840243,0.00020797,2]
[403841763,1769587842448,-151.96,0.00020799,2]
[403841764,1769587842458,-150.0,0.00021,7]
[403841765,1769587842468,-346.92554585,0.00021007,2]
[403841766,1769587842478,-599.60298507,0.00021008,2]
[403841767,1769587842488,-209.40437684,0.00021009,2]
[403841768,1769587842497,-12520.94,0.00021068,2]
[403841769,1769587842506,-152.0,0.00021114,4]
[403841770,1769587842515,-3477.0,0.00021324,2]
[403841771,1769587842525,-615.0,0.00021324,2]
[403841772,1769587842534,-1333.0,0.00021324,2]
[403841773,1769587842543,-916.0,0.00021324,2]
[403841774,1769587842554,-1204.0,0.00021324,2]
[403841775,1769587842563,-2443.0,0.00021324,2]
[403841776,1769587842572,-4832.0,0.00021324,2]
[403841777,1769587842582,-6572.0,0.00021324,2]
[403841778,1769587842591,-166.11,0.00021397,2]
[403841779,1769587842601,-195.94117934,0.00021557,2]
[403841780,1769587842612,-169.59603033,0.00021601,2]
[403841781,1769587842623,-172.59,0.00021775,2]
[403841782,1769587842634,-152.0,0.00021907,5]
[403841783,1769587842643,-500.0,0.00021917,2]
[403841784,1769587842652,-500.0,0.00021917,2]
[403841785,1769587842662,-500.0,0.00021917,2]
[403841786,1769587842673,-500.0,0.00021917,2]
[403841787,1769587842682,-500.0,0.00021917,2]
[403841788,1769587842694,-500.0,0.00021917,2]
[403841789,1769587842705,-500.0,0.00021917,2]
[403841790,1769587842715,-500.0,0.00021917,2]
[403841791,1769587842725,-500.0,0.00021917,2]
[403841792,1769587842734,-500.0,0.00021917,2]
[403841793,1769587842744,-500.0,0.00021917,2]
[403841794,1769587842753,-500.0,0.00021917,2]
[403841795,1769587842762,-380.64938174,0.00021917,2]
[403841796,1769587842772,-500.0,0.00021918,2]
[403841797,1769587842781,-150.0,0.00021918,2]
[403841798,1769587842791,-150.0,0.00021918,2]
[403841799,1769587842800,-500.0,0.00021973,2]
[403841800,1769587842810,-500.0,0.00021973,2]
[403841802,1769587842820,-500.0,0.00021973,2]
[403841803,1769587842829,-500.0,0.00021973,2]
[403841805,1769587842839,-163.31548462,0.00021973,2]
[403841806,1769587842848,-500.0,0.00021973,2]
[403841807,1769587842857,-500.47145403,0.00021973,2]
[403841808,1769587842867,-500.0,0.00021973,2]
[403841809,1769587842876,-175.36382972,0.00021973,2]
[403841810,1769587842886,-151.01838811,0.00021973,2]
[403841811,1769587842896,-500.0,0.00021973,2]
[403841812,1769587842905,-500.0,0.00021973,2]
[403841813,1769587842915,-500.0,0.00021973,2]
[403841814,1769587842925,-500.5268179,0.00021973,2]
[403841815,1769587842936,-500.0,0.00021973,2]
[403841816,1769587842945,-500.0,0.00021973,2]
[403841818,1769587842955,-500.0,0.00021973,2]
[403841819,1769587842964,-643.51237455,0.00021973,2]
[403841820,1769587842973,-431.84849978,0.00021973,2]
[403841821,1769587842982,-160.17378666,0.00021973,2]
[403841823,1769587842992,-210.16186211,0.00021973,2]
[403841824,1769587843001,-500.0,0.00021973,2]
[403841825,1769587843011,-500.0,0.00021973,2]
[403841826,1769587843021,-500.0,0.00021973,2]
[403841827,1769587843030,-150.0,0.00021973,2]
[403841828,1769587843040,-500.0,0.00021973,2]
[403841829,1769587843050,-500.0,0.00021973,2]
[403841830,1769587843059,-500.0,0.00021973,2]
[403841831,1769587843069,-500.0,0.00021973,2]
[403841832,1769587843082,-500.72062274,0.00021973,2]
[403841833,1769587843091,-160.08,0.00021973,2]
[403841834,1769587843101,-500.0,0.00021973,2]
[403841835,1769587843111,-500.0,0.00021973,2]
[403841836,1769587843121,-500.0,0.00021973,2]
[403841837,1769587843131,-391.88485596,0.00021973,2]
[403841838,1769587843142,-500.0,0.00021973,2]
[403841839,1769587843154,-563.34898698,0.00021973,2]
[403841840,1769587843164,-500.5908324,0.00021973,2]
[403841841,1769587843173,-500.0,0.00021973,2]
[403841842,1769587843183,-501.00493719,0.00021973,2]
[403841843,1769587843193,-500.0,0.00021973,2]
[403841844,1769587843202,-500.0,0.00021973,2]
[403841845,1769587843212,-500.0,0.00021973,2]
[403841846,1769587843222,-500.0,0.00021973,2]
[403841847,1769587843231,-500.0,0.00021973,2]
[403841848,1769587843241,-500.0,0.00021973,2]
[403841849,1769587843250,-500.8614743,0.00021973,2]
[403841850,1769587843259,-500.0,0.00021973,2]
[403841851,1769587843269,-500.0,0.00021973,2]
[403841852,1769587843279,-500.0,0.00021973,2]
[403841853,1769587843288,-501.71470832,0.00021973,2]
[403841854,1769587843299,-500.0,0.00021973,2]
[403841855,1769587843595,-500.0,0.00021973,2]
[403841856,1769587843605,-500.0,0.00021973,2]
[403841857,1769587843615,-380.77450093,0.00021973,2]
[403841858,1769587843624,-500.0,0.00021973,2]
[403841859,1769587843633,-150.42019668,0.00021973,2]
[403841860,1769587843643,-1000.00017002,0.00022,2]
[403841861,1769587843654,-837.97,0.00022,7]
[403841862,1769587843663,-205.0,0.00022,2]
[403841863,1769587843673,-500.0,0.00022028,2]
[403841864,1769587843682,-150.00289551,0.00022051,16]
[403841865,1769587843692,-500.0,0.00022082,2]
[403841866,1769587843701,-500.0,0.00022137,2]
[403841867,1769587843711,-500.0,0.00022192,2]
[403841868,1769587843720,-500.0,0.00022247,2]
[403841869,1769587843730,-500.0,0.00022302,2]
[403841870,1769587843739,-500.0,0.00022356,2]
[403841871,1769587843750,-359.76179104,0.00022376,2]
[403841872,1769587843760,-800.0,0.00022392,8]
[403841873,1769587843770,-800.0,0.00022392,8]
[403841874,1769587843779,-800.0,0.00022392,8]
[403841875,1769587843788,-800.0,0.00022392,8]
[403841876,1769587843798,-800.0,0.00022392,8]
[403841877,1769587843808,-800.0,0.00022392,8]
[403841878,1769587843817,-800.0,0.00022392,8]
[403841879,1769587843827,-800.0,0.00022392,8]
[403841880,1769587843847,-500.0,0.00022411,2]
[403841881,1769587843858,-500.0,0.00022466,2]
[403841882,1769587843868,-348.08784504,0.000225,2]
[403841883,1769587843878,-1000.0,0.00022521,2]
[403841884,1769587843888,-302.18506883,0.00022521,2]
[403841885,1769587843899,-1000.0,0.00022521,2]
[403841886,1769587843909,-501.25105455,0.00022521,2]
[403841887,1769587843920,-1000.0,0.00022521,2]
[403841888,1769587843930,-1000.0,0.00022521,2]
[403841889,1769587843940,-1000.0,0.00022521,2]
[403841890,1769587843950,-501.35196587,0.00022521,2]
[403841891,1769587843961,-1000.0,0.00022521,2]
[403841892,1769587843970,-1000.0,0.00022521,2]
[403841893,1769587843981,-1000.0,0.00022521,2]
[403841894,1769587843991,-1000.0,0.00022521,2]
[403841895,1769587844000,-1000.0,0.00022521,2]
[403841896,1769587844010,-1000.0,0.00022521,2]
[403841897,1769587844020,-1000.88636946,0.00022521,2]
[403841898,1769587844029,-150.0,0.00022521,2]
[403841899,1769587844039,-501.42687001,0.00022521,2]
[403841900,1769587844049,-1000.0,0.00022521,2]
[403841901,1769587844058,-535.37073986,0.00022521,2]
[403841902,1769587844067,-1000.0,0.00022521,2]
[403841903,1769587844079,-1001.07065245,0.00022521,2]
[403841904,1769587844088,-1000.0,0.00022521,2]
[403841905,1769587844097,-1000.0,0.00022521,2]
[403841906,1769587844107,-1000.0,0.00022521,2]
[403841907,1769587844116,-1000.0,0.00022521,2]
[403841908,1769587844127,-1000.0,0.00022521,2]
[403841909,1769587844137,-1000.92692502,0.00022521,2]
[403841910,1769587844146,-694.5705092,0.00022521,2]
[403841911,1769587844159,-1001.74500581,0.00022521,2]
[403841912,1769587844168,-1000.0,0.00022521,2]
[403841913,1769587844178,-1000.81070746,0.00022521,2]
[403841914,1769587844188,-1000.0,0.00022521,2]
[403841915,1769587844198,-1000.0,0.00022521,2]
[403841916,1769587844211,-1000.0,0.00022521,2]
[403841917,1769587844222,-1000.0,0.00022521,2]
[403841918,1769587844231,-1142.18131833,0.00022521,2]
[403841919,1769587844241,-591.99620663,0.00022521,2]
[403841920,1769587844251,-500.0,0.00022521,2]
[403841921,1769587844260,-500.0,0.00022576,2]
[403841922,1769587844270,-166.11,0.00022586,2]
[403841923,1769587844280,-152.0,0.000226,2]
[403841924,1769587844289,-1267.0,0.000226,2]
[403841925,1769587844299,-152.0,0.000226,2]
[403841926,1769587844309,-165.0,0.000226,2]
[403841927,1769587844318,-1267.0,0.000226,2]
[403841928,1769587844328,-155.0,0.000226,2]
[403841929,1769587844337,-152.0,0.000226,2]
[403841930,1769587844348,-165.0,0.000226,2]
[403841931,1769587844357,-1267.0,0.000226,2]
[403841932,1769587844367,-155.0,0.000226,2]
[403841933,1769587844377,-152.0,0.000226,2]
[403841934,1769587844386,-1267.0,0.000226,2]
[403841935,1769587844396,-165.0,0.000226,2]
[403841936,1769587844406,-151.0,0.000226,2]
[403841937,1769587844416,-155.0,0.000226,2]
[403841938,1769587844425,-152.0,0.000226,2]
[403841939,1769587844435,-1267.0,0.000226,2]
[403841940,1769587844445,-165.0,0.000226,2]
[403841941,1769587844454,-151.0,0.000226,2]
[403841942,1769587844464,-152.0,0.000226,2]
[403841943,1769587844473,-155.0,0.000226,2]
[403841944,1769587844482,-151.0,0.000226,2]
[403841945,1769587844492,-1267.0,0.000226,2]
[403841946,1769587844501,-165.0,0.000226,2]
[403841947,1769587844511,-155.0,0.000226,2]
[403841948,1769587844520,-152.0,0.000226,2]
[403841949,1769587844530,-1267.0,0.000226,2]
[403841950,1769587844540,-151.0,0.000226,2]
[403841951,1769587844549,-165.0,0.000226,2]
[403841952,1769587844558,-152.0,0.000226,2]
[403841953,1769587844571,-1267.0,0.000226,2]
[403841954,1769587844581,-151.0,0.000226,2]
[403841955,1769587844590,-155.0,0.000226,2]
[403841956,1769587844600,-165.0,0.000226,2]
[403841957,1769587844609,-152.0,0.000226,2]
[403841958,1769587844619,-1267.0,0.000226,2]
[403841959,1769587844628,-155.0,0.000226,2]
[403841960,1769587844637,-151.0,0.000226,2]
[403841961,1769587844647,-165.0,0.000226,2]
[403841962,1769587844656,-152.0,0.000226,2]
[403841963,1769587844666,-1267.0,0.000226,2]
[403841964,1769587844675,-155.0,0.000226,2]
[403841965,1769587844684,-151.0,0.000226,2]
[403841966,1769587844694,-168.35235479,0.000226,2]
[403841967,1769587844703,-152.0,0.000226,2]
[403841968,1769587844714,-1267.0,0.000226,2]
[403841969,1769587844724,-155.0,0.000226,2]
[403841970,1769587844735,-151.0,0.000226,2]
[403841971,1769587844745,-152.0,0.000226,2]
[403841972,1769587844754,-1267.0,0.000226,2]
[403841973,1769587844769,-155.0,0.000226,2]
[403841974,1769587844779,-151.0,0.000226,2]
[403841975,1769587844788,-152.0,0.000226,2]
[403841976,1769587844798,-151.0,0.000226,2]
[403841977,1769587844808,-155.0,0.000226,2]
[403841978,1769587844819,-1267.0,0.000226,2]
[403841979,1769587844829,-152.0,0.000226,2]
[403841980,1769587844839,-151.0,0.000226,2]
[403841981,1769587844849,-155.0,0.000226,2]
[403841982,1769587844860,-151.0,0.000226,2]
[403841983,1769587844870,-151.0,0.000226,2]
[403841984,1769587844880,-151.0,0.000226,2]
[403841985,1769587844890,-155.0,0.000226,2]
[403841986,1769587844899,-155.0,0.000226,2]
[403841987,1769587844909,-155.0,0.000226,2]
[403841988,1769587844920,-155.0,0.000226,2]
[403841989,1769587844929,-155.0,0.000226,2]
[403841990,1769587844939,-151.0,0.000226,2]
[403841991,1769587844949,-155.0,0.000226,2]
[403841992,1769587844963,-151.0,0.000226,2]
[403841993,1769587844972,-155.0,0.000226,2]
[403841994,1769587844982,-151.0,0.000226,2]
[403841995,1769587844992,-219.15698301,0.000226,2]
[403841996,1769587845002,-151.0,0.000226,2]
[403841997,1769587845012,-151.0,0.000226,2]
[403841998,1769587845021,-151.0,0.000226,2]
[403841999,1769587845031,-151.0,0.000226,2]
[403842000,1769587845040,-151.0,0.000226,2]
[403842001,1769587845050,-1267.0,0.000226,2]
[403842002,1769587845061,-1267.0,0.000226,2]
[403842003,1769587845071,-1267.0,0.000226,2]
[403842004,1769587845083,-151.0,0.000226,2]
[403842005,1769587845092,-1267.0,0.000226,2]
[403842006,1769587845102,-1267.0,0.000226,2]
[403842007,1769587845112,-151.0,0.000226,2]
[403842008,1769587845123,-1267.0,0.000226,2]
[403842009,1769587845133,-151.0,0.000226,2]
[403842010,1769587845142,-151.0,0.000226,2]
[403842011,1769587845158,-1267.0,0.000226,2]
[403842012,1769587845168,-152.50126102,0.000226,2]
[403842013,1769587845177,-1267.0,0.000226,2]
[403842014,1769587845187,-1267.0,0.000226,2]
[403842015,1769587845197,-1267.0,0.000226,2]
[403842016,1769587845207,-1267.0,0.000226,2]
[403842017,1769587845216,-166.0,0.000226,2]
[403842018,1769587845226,-170.47665606,0.000226,2]
[403842019,1769587845236,-158.0,0.000226,2]
[403842020,1769587845245,-303.0,0.000226,2]
[403842021,1769587845255,-500.0,0.0002263,2]
[403842022,1769587845264,-4268.3625801,0.0002264,2]
[403842023,1769587845274,-1294.9884,0.00022666,2]
[403842024,1769587845284,-500.0,0.00022685,2]
[403842025,1769587845294,-152.0,0.00022701,6]
[403842026,1769587845303,-151.0,0.0002271,7]
[403842027,1769587845312,-5860.2561898,0.00022713,2]
[403842028,1769587845322,-166276.5124646,0.00022713,2]
[403842029,1769587845332,-634.80759439,0.0002274,2]
[403842030,1769587845341,-261.0,0.00022766,2]
[403842031,1769587845354,-164.35711812,0.00022973,2]
[403842032,1769587845363,-150.0,0.00022973,2]
[403842033,1769587845373,-429.0,0.00023021,2]
[403842034,1769587845382,-429.0,0.00023066,2]
[403842035,1769587845392,-1500.0,0.00023068,2]
[403842036,1769587845402,-1500.0,0.00023068,2]
[403842037,1769587845411,-500.84820247,0.00023068,2]
[403842038,1769587845420,-1500.0,0.00023068,2]
[403842039,1769587845430,-1500.0,0.00023068,2]
[403842040,1769587845439,-500.8447642,0.00023068,2]
[403842041,1769587845449,-287.70306997,0.00023068,2]
[403842042,1769587845459,-901.18542814,0.00023068,2]
[403842043,1769587845468,-1500.0,0.00023068,2]
[403842044,1769587845478,-1500.0,0.00023068,2]
[403842045,1769587845487,-1500.0,0.00023068,2]
[403842046,1769587845497,-237.59342723,0.00023068,2]
[403842047,1769587845507,-1500.0,0.00023068,2]
[403842048,1769587845516,-1500.0,0.00023068,2]
[403842049,1769587845526,-1500.0,0.00023068,2]
[403842050,1769587845535,-1500.0,0.00023068,2]
[403842051,1769587845545,-1500.0,0.00023068,2]
[403842052,1769587845554,-1500.0,0.00023068,2]
[403842053,1769587845563,-892.31600329,0.00023068,2]
[403842054,1769587845573,-1500.0,0.00023068,2]
[403842055,1769587845582,-1500.0,0.00023068,2]
[403842056,1769587845592,-1502.0815119,0.00023068,2]
[403842057,1769587845602,-1500.0,0.00023068,2]
[403842058,1769587845612,-1502.13077454,0.00023068,2]
[403842059,1769587845622,-500.0,0.00023156,7]
[403842060,1769587845631,-500.0,0.00023156,7]
[403842061,1769587845641,-500.0,0.00023156,7]
[403842062,1769587845651,-1000.0,0.00023157,2]
[403842063,1769587845660,-200.0,0.00023199,2]
[403842064,1769587845670,-877.25345748,0.000232,2]
[403842065,1769587845680,-387.0,0.00023346,2]
[403842066,1769587845689,-1000.0,0.00023356,2]
[403842067,1769587845699,-501.0,0.00023391,7]
[403842068,1769587845708,-2000.0,0.000234,2]
[403842069,1769587845718,-1000.0,0.000234,2]
[403842070,1769587845728,-1000.0,0.0002341,2]
[403842071,1769587845746,-150.00289551,0.00023424,20]
[403842072,1769587845757,-1000.0,0.00023454,2]
[403842073,1769587845767,-1000.0,0.00023477,2]
[403842074,1769587845777,-152.0,0.00023495,7]
[403842075,1769587845787,-1000.0,0.00023513,2]
[403842076,1769587845797,-1000.0,0.00023515,2]
[403842077,1769587845807,-718.95426736,0.0002352,2]
[403842078,1769587845817,-250.0,0.00023521,2]
[403842079,1769587845827,-1000.0,0.00023536,2]
[403842080,1769587845837,-1000.0,0.00023581,2]
[403842081,1769587845847,-500.0,0.00023616,2]
[403842082,1769587845858,-436.39003316,0.00023616,2]
[403842083,1769587845868,-461.93263446,0.00023616,2]
[403842084,1769587845878,-501.4315865,0.00023616,2]
[403842085,1769587845888,-1002.59867678,0.00023616,2]
[403842086,1769587845899,-174.36957488,0.00023616,2]
[403842087,1769587845908,-500.0,0.00023616,2]
[403842088,1769587845918,-502.50538317,0.00023616,2]
[403842089,1769587845928,-563.2071984,0.00023616,2]
[403842090,1769587845938,-288.94047473,0.00023616,2]
[403842091,1769587845948,-1502.71615028,0.00023616,2]
[403842092,1769587845959,-501.67955883,0.00023616,2]
[403842093,1769587845968,-2000.0,0.00023616,2]
[403842094,1769587845978,-619.15242156,0.00023616,2]
[403842095,1769587845988,-501.66009161,0.00023616,2]
[403842096,1769587845998,-501.87452206,0.00023616,2]
[403842097,1769587846008,-1000.0,0.00023673,2]
[403842098,1769587846018,-1000.0,0.00023732,2]
[403842099,1769587846028,-1000.0,0.00023736,2]
[403842100,1769587846037,-373.07297731,0.00023745,2]
[403842101,1769587846047,-621.78829552,0.00023747,2]
[403842102,1769587846056,-1000.0,0.00023767,2]
[403842103,1769587846066,-166.11,0.00023774,2]
[403842104,1769587846077,-500.0,0.000238,10]
[403842105,1769587846089,-1000.0,0.00023807,2]
[403842106,1769587846099,-1000.0,0.00023843,2]
[403842107,1769587846109,-1000.0,0.00023844,2]
[403842108,1769587846123,-1000.0,0.00023867,2]
[403842109,1769587846133,-1000.0,0.0002387,2]
[403842110,1769587846143,-1000.0,0.00023896,2]
[403842111,1769587846154,-1000.0,0.00023902,2]
[403842112,1769587846164,-1000.0,0.0002394,2]
[403842113,1769587846173,-1000.0,0.00023952,2]
[403842114,1769587846183,-1000.0,0.00023953,2]
[403842115,1769587846193,-287.66,0.00023971,2]
[403842116,1769587846202,-200.17585614,0.00023996,2]